bitfinex-derivatives/quotes_BNBF0:USTF0_20250211
["timestamp","ask_amount","ask_price","bid_price","bid_amount"]
[1739311547367,1.34634108,639.41,638.76,1.13057641]
[1739311547568,1.34634108,639.4,638.76,1.13057641]
[1739311547774,1.34634108,639.39,638.76,1.13057641]
[1739311547975,1.34634108,639.38,638.76,1.13057641]
[1739311548170,1.34634108,639.37,638.32,1.13057641]
[1739311548373,1.34634108,639.36,638.33,0.31331756]
[1739311548571,1.34634108,639.35,638.33,0.31331756]
[1739311548774,1.34634108,639.34,638.33,0.31331756]
[1739311549076,1.34634108,639.33,638.33,0.31331756]
[1739311549274,1.34634108,639.32,638.33,0.31331756]
[1739311549469,1.34634108,639.31,638.33,0.31331756]
[1739311549672,1.34634108,639.3,638.33,0.31331756]
[1739311549869,1.34634108,639.29,638.33,0.31331756]
[1739311550073,1.056,639.68,638.33,0.31331756]
[1739311550269,1.338,639.3,638.33,0.31331756]
[1739311550471,1.3400456,639.29,638.33,0.31331756]
[1739311550675,1.3400456,639.28,638.33,0.31331756]
[1739311550976,1.338,639.3,638.33,0.31331756]
[1739311552277,0.656,639.29,638.33,0.31331756]
[1739311552879,1.33890668,639.28,638.33,0.31331756]
[1739311553072,1.33890668,639.27,638.33,0.31331756]
[1739311553272,1.33890668,639.26,638.33,0.31331756]
[1739311553472,1.33890668,639.25,638.33,0.31331756]
[1739311553675,1.33890668,639.24,638.33,0.31331756]
[1739311553875,0.656,639.29,638.33,0.31331756]
[1739311554072,1.33827964,639.28,638.33,0.31331756]
[1739311554274,0.656,639.29,638.33,0.31331756]
[1739311554275,1.33772154,639.27,638.33,0.31331756]
[1739311554479,0.656,639.29,638.33,0.31331756]
[1739311554673,1.33771839,639.28,638.33,0.31331756]
[1739311554874,0.656,639.29,638.33,0.31331756]
[1739311555878,1.33719229,639.28,638.33,0.31331756]
[1739311556079,1.33719229,639.27,638.33,0.31331756]
[1739311556380,0.656,639.29,638.33,0.31331756]
[1739311556879,1.33670814,639.28,638.33,0.31331756]
[1739311557078,1.33670814,639.27,638.33,0.31331756]
[1739311557379,1.33622235,639.26,638.33,0.31331756]
[1739311557577,1.251,639.27,638.33,0.31331756]
[1739311559480,1.33547252,639.26,638.33,0.31331756]
[1739311559781,1.33547646,639.25,638.33,0.31331756]
[1739311559977,1.251,639.27,638.33,0.31331756]
[1739311560174,1.3354784,639.26,638.33,0.31331756]
[1739311560378,1.251,639.27,638.33,0.31331756]
[1739311560880,1.33545547,639.26,638.33,0.31331756]
[1739311561078,1.33545547,639.25,638.33,0.31331756]
[1739311561275,1.251,639.27,638.33,0.31331756]
[1739311561980,2.301,639.27,638.33,0.31331756]
[1739311562578,1.33499317,639.26,638.33,0.31331756]
[1739311562781,1.33499317,639.25,638.34,1.63416085]
[1739311562975,1.33499317,639.24,638.34,1.9474735]
[1739311563176,1.33499317,639.23,638.34,1.9474735]
[1739311563381,2.301,639.27,638.34,1.9474735]
[1739311563582,1.33478385,639.26,638.34,1.9474735]
[1739311563781,1.33478385,639.25,638.34,1.9474735]
[1739311564081,1.33478385,639.24,638.34,0.31331265]
[1739311564283,1.33493936,639.23,638.34,0.31331265]
[1739311564576,1.33493936,639.22,638.34,0.31331265]
[1739311564773,1.33493936,639.21,638.34,0.31331265]
[1739311564979,1.33493936,639.2,638.34,0.31331265]
[1739311565179,1.33493936,639.19,638.34,0.31331265]
[1739311565380,2.301,639.27,638.34,0.31331265]
[1739311565580,1.33388081,639.26,638.34,0.31331265]
[1739311565775,1.33388081,639.25,638.34,0.31331265]
[1739311565983,1.33388081,639.24,638.34,0.31331265]
[1739311566284,1.33356555,639.23,638.34,0.31331265]
[1739311566477,1.33356555,639.22,638.34,0.31331265]
[1739311566676,1.33362026,639.21,638.34,0.31331265]
[1739311566983,1.33362026,639.2,638.34,0.31331265]
[1739311567183,1.33362026,639.19,638.34,0.31331265]
[1739311567382,1.33362026,639.18,638.34,0.31331265]
[1739311567584,1.33362026,639.17,638.34,0.31331265]
[1739311567777,0.656,639.19,638.34,0.31331265]
[1739311567978,1.33330296,639.18,638.34,0.31331265]
[1739311568183,1.33331417,639.17,638.34,0.31331265]
[1739311568386,1.3330202,639.16,638.34,0.31331265]
[1739311568586,0.656,639.19,638.34,0.31331265]
[1739311568786,1.33299132,639.18,638.34,0.31331265]
[1739311568984,0.656,639.19,638.34,0.31331265]
[1739311569187,1.33299101,639.18,638.34,0.31331265]
[1739311569387,0.656,639.19,638.34,0.31331265]
[1739311570986,1.33234735,639.18,638.34,0.31331265]
[1739311571193,1.33234735,639.17,638.34,0.31331265]
[1739311571491,1.33234735,639.16,638.34,0.31331265]
[1739311571790,1.33234735,639.15,638.34,0.31331265]
[1739311571990,1.33234735,639.14,638.34,0.31331265]
[1739311572185,1.33234735,639.13,638.34,0.31331265]
[1739311572491,1.33193313,639.12,638.34,0.31331265]
[1739311572692,0.656,639.19,638.34,0.31331265]
[1739311572886,1.33193161,639.18,638.34,0.31331265]
[1739311573092,1.33193161,639.17,638.34,0.31331265]
[1739311573290,1.33193161,639.16,638.34,0.31331265]
[1739311573491,1.33193161,639.15,638.34,0.31331265]
[1739311573688,1.33193161,639.14,638.34,0.31331265]
[1739311573890,1.33193161,639.13,638.34,0.31331265]
[1739311574187,0.656,639.19,638.34,0.31331265]
[1739311574390,1.33174448,639.18,638.34,0.31331265]
[1739311574590,0.656,639.19,638.34,0.31331265]
[1739311574591,1.33173341,639.17,638.34,0.31331265]
[1739311574792,1.33173341,639.16,638.34,0.31331265]
[1739311574987,1.33173518,639.15,638.34,0.31331265]
[1739311575186,1.33173518,639.14,638.34,0.31331265]
[1739311575493,1.33173518,639.13,638.34,0.31331265]
[1739311575694,0.656,639.19,638.34,0.31331265]
[1739311575894,1.33185882,639.18,638.34,0.31331265]
[1739311576095,1.33185882,639.17,638.34,0.31331265]
[1739311576393,1.33185882,639.16,638.34,0.31331265]
[1739311576594,1.33185882,639.15,638.34,0.31331265]
[1739311576794,1.33185882,639.14,638.34,0.31331265]
[1739311576994,1.33185882,639.13,638.34,0.31331265]
[1739311577195,1.33185882,639.12,638.34,0.31331265]
[1739311577494,1.3321384,639.11,638.34,0.31331265]
[1739311577692,0.656,639.19,638.34,0.31331265]
[1739311577890,1.33214286,639.18,638.34,0.31331265]
[1739311578095,1.33214286,639.17,638.34,0.31331265]
[1739311578296,1.33214286,639.16,638.34,0.31331265]
[1739311578492,1.33214286,639.15,638.34,0.31331265]
[1739311578693,0.656,639.19,638.34,0.31331265]
[1739311578892,1.33232835,639.18,638.34,0.31331265]
[1739311579090,1.33232835,639.17,638.34,0.31331265]
[1739311579294,0.656,639.19,638.34,0.31331265]
[1739311579796,1.33239607,639.18,638.34,0.31331265]
[1739311579995,0.656,639.19,638.34,0.31331265]
[1739311579996,1.33239654,639.17,638.34,0.31331265]
[1739311580197,1.33239654,639.16,638.34,0.31331265]
[1739311580393,0.656,639.19,638.34,0.31331265]
[1739311580599,1.33251743,639.18,638.34,0.31331265]
[1739311580795,1.33251743,639.17,638.34,0.31331265]
[1739311581098,0.97,639.17,638.34,0.31331265]
[1739311581300,1.33258464,639.16,638.34,0.31331265]
[1739311581599,0.97,639.17,638.34,0.31331265]
[1739311582200,1.33268908,639.16,638.34,0.31331265]
[1739311582498,0.97,639.17,638.34,0.31331265]
[1739311582693,1.33270608,639.16,638.34,0.31331265]
[1739311582897,1.33269659,639.15,638.34,0.31331265]
[1739311583097,0.97,639.17,638.34,0.31331265]
[1739311583392,1.33267261,639.16,638.34,0.31331265]
[1739311583601,0.97,639.17,638.34,0.31331265]
[1739311583901,1.33280855,639.16,638.34,0.31331265]
[1739311584198,1.33280855,639.15,638.34,0.31331265]
[1739311584396,1.33280855,639.14,638.34,0.31331265]
[1739311584695,0.97,639.17,638.34,0.31331265]
[1739311584696,1.33298377,639.13,638.34,0.31331265]
[1739311584899,1.33298377,639.12,638.34,0.31331265]
[1739311585099,1.33298377,639.11,638.34,0.31331265]
[1739311585398,1.33308155,639.1,638.34,0.31331265]
[1739311585597,0.97,639.17,638.34,0.31331265]
[1739311585796,1.33310209,639.16,638.34,0.31331265]
[1739311585996,1.33310209,639.15,638.34,0.31331265]
[1739311586198,1.33310209,639.14,638.34,0.31331265]
[1739311586394,1.33310209,639.13,638.34,0.31331265]
[1739311586599,1.33310209,639.12,638.34,0.31331265]
[1739311586800,1.33310209,639.11,638.34,0.31331265]
[1739311586993,1.33310209,639.1,638.34,0.31331265]
[1739311587197,1.33310209,639.09,638.34,0.31331265]
[1739311587393,1.33310209,639.08,638.34,0.31331265]
[1739311587597,1.153,639.11,638.34,0.31331265]
[1739311587598,1.33310209,639.07,638.34,0.31331265]
[1739311587799,1.33310209,639.06,638.34,0.31331265]
[1739311588100,1.33310209,639.05,638.34,0.31331265]
[1739311588303,1.33310209,639.04,638.34,0.31331265]
[1739311588602,1.33310209,639.03,638.34,0.31331265]
[1739311588793,1.153,639.11,638.34,0.31331265]
[1739311588997,1.33354402,639.1,638.34,0.31331265]
[1739311589196,1.33354402,639.09,638.34,0.31331265]
[1739311589400,1.33354402,639.08,638.34,0.31331265]
[1739311589599,1.33354402,639.07,638.34,0.31331265]
[1739311589798,1.33354402,639.06,638.34,0.31331265]
[1739311590003,1.33354402,639.05,637.87,1.13057641]
[1739311590202,1.33354402,639.04,637.89,0.31353368]
[1739311590398,1.33354402,639.03,637.89,0.31353368]
[1739311590702,1.33354402,639.02,637.89,0.31353368]
[1739311590903,1.33404651,639.01,637.89,0.31353368]
[1739311591202,1.33437741,639.0,637.89,0.31353368]
[1739311591403,1.33437741,638.99,637.89,0.31353368]
[1739311591605,1.33437741,638.98,637.89,0.31353368]
[1739311591807,1.33441395,638.97,637.89,0.31353368]
[1739311592006,1.4,639.1,637.89,0.31353368]
[1739311592207,1.33439756,639.09,637.89,0.31353368]
[1739311592408,1.33439756,639.08,637.89,0.31353368]
[1739311592602,1.33439756,639.07,637.89,0.31353368]
[1739311592800,1.33439756,639.06,637.89,0.31353368]
[1739311593008,1.33439756,639.05,637.89,0.31353368]
[1739311593209,1.33439756,639.04,637.89,0.31353368]
[1739311593508,1.33439756,639.03,637.89,0.31353368]
[1739311593803,1.33439756,639.02,637.89,0.31353368]
[1739311594007,1.33439756,639.01,637.89,0.31353368]
[1739311594308,1.33439756,639.0,637.89,0.31353368]
[1739311594509,1.33439756,638.99,637.89,0.31353368]
[1739311594807,1.33439756,638.98,637.89,0.31353368]
[1739311595008,1.4,639.1,637.89,0.31353368]
[1739311595210,1.33575196,639.09,637.89,0.31353368]
[1739311595403,1.33575196,639.08,637.89,0.31353368]
[1739311595605,1.33575196,639.07,637.89,0.31353368]
[1739311595804,1.4,639.1,637.89,0.31353368]
[1739311595805,1.33575196,639.06,637.89,0.31353368]
[1739311596006,1.33575196,639.05,637.89,0.31353368]
[1739311596211,1.33575196,639.04,637.89,0.31353368]
[1739311596512,1.33575196,639.03,637.99,1.13057641]
[1739311596811,1.99275196,639.02,638.0,0.31347962]
[1739311597016,1.33718828,639.01,638.0,0.31347962]
[1739311597214,1.33718828,639.0,638.0,0.31347962]
[1739311597407,1.33718828,638.99,638.0,0.31347962]
[1739311597612,0.657,639.02,638.0,0.31347962]
[1739311598114,0.657,639.02,638.02,1.13057641]
[1739311598314,0.657,639.02,638.04,0.31345997]
[1739311600514,0.657,639.02,638.27,1.13057641]
[1739311600809,0.657,639.02,638.28,0.3133421]
[1739311602112,0.657,639.02,638.34,1.13057641]
[1739311603616,1.34511436,639.01,638.34,1.13057641]
[1739311603819,1.34511436,639.0,638.34,1.13057641]
[1739311604016,1.34511436,638.99,638.34,1.13057641]
[1739311604317,0.657,639.02,638.34,1.13057641]
[1739311604515,1.34560832,639.01,638.34,1.13057641]
[1739311604820,1.34560832,639.0,638.34,1.13057641]
[1739311605020,1.34560832,638.99,638.34,1.13057641]
[1739311605319,1.34560832,638.98,638.34,1.13057641]
[1739311605620,1.34560832,638.97,638.34,1.13057641]
[1739311605821,1.34560832,638.96,638.34,1.13057641]
[1739311606021,0.657,639.02,638.34,1.13057641]
[1739311606222,1.34615468,639.01,638.34,1.13057641]
[1739311606419,1.34615468,639.0,638.34,1.13057641]
[1739311606722,1.34615468,638.99,638.28,0.3133421]
[1739311607024,1.34615468,638.98,638.28,0.3133421]
[1739311607219,1.34615468,638.97,638.28,0.3133421]
[1739311607416,0.657,639.02,638.28,0.3133421]
[1739311607822,1.34650838,639.01,638.28,0.3133421]
[1739311608121,0.657,639.02,638.28,0.3133421]
[1739311608323,0.657,639.02,638.33,1.13057641]
[1739311608522,1.34665945,639.01,638.33,1.13057641]
[1739311608823,1.34665945,639.0,638.33,1.13057641]
[1739311609019,1.34665945,638.99,638.33,1.13057641]
[1739311609224,0.657,639.02,638.33,1.13057641]
[1739311609417,1.34677356,639.01,638.33,1.44389397]
[1739311609622,0.657,639.02,638.33,1.44389397]
[1739311609822,1.34673895,639.01,638.33,1.44389397]
[1739311610023,1.34673895,639.0,638.33,1.44389397]
[1739311610323,1.34682219,638.99,638.33,0.31331756]
[1739311610523,0.657,639.02,638.33,0.31331756]
[1739311610718,1.34695933,639.01,638.33,0.31331756]
[1739311610923,1.34695933,639.0,638.33,0.31331756]
[1739311611124,1.34695933,638.99,638.33,0.31331756]
[1739311611323,1.251,639.0,638.33,0.31331756]
[1739311611518,1.34714213,638.99,638.33,0.31331756]
[1739311611718,1.34714213,638.98,638.33,0.31331756]
[1739311611916,1.251,639.0,638.33,0.31331756]
[1739311612124,1.34714194,638.99,638.33,0.31331756]
[1739311612326,1.34735691,638.98,638.33,0.31331756]
[1739311612524,1.251,639.0,638.33,0.31331756]
[1739311612720,1.34735594,638.99,638.33,0.31331756]
[1739311612925,1.251,639.0,638.33,0.31331756]
[1739311613125,1.34735009,638.99,638.33,0.31331756]
[1739311613327,1.34739068,638.98,638.33,0.31331756]
[1739311613522,1.251,639.0,638.33,0.31331756]
[1739311613922,1.34739521,638.99,638.33,0.31331756]
[1739311614125,1.251,639.0,638.33,0.31331756]
[1739311614325,1.34748713,638.99,638.33,0.31331756]
[1739311614626,1.251,639.0,638.33,0.31331756]
[1739311614826,1.34749657,638.99,638.33,0.31331756]
[1739311615027,1.251,639.0,638.33,0.31331756]
[1739311615227,1.34772432,638.99,638.33,0.31331756]
[1739311615428,1.34772432,638.98,638.33,0.31331756]
[1739311615727,1.34772432,638.97,638.33,0.31331756]
[1739311615929,1.34772432,638.96,638.33,0.31331756]
[1739311616127,1.34774093,638.95,638.33,0.31331756]
[1739311616327,1.251,639.0,638.33,0.31331756]
[1739311616527,1.34793087,638.99,638.33,0.31331756]
[1739311616727,1.34793087,638.98,638.33,0.31331756]
[1739311616927,1.251,639.0,638.33,0.31331756]
[1739311617127,1.34788724,638.99,638.33,0.31331756]
[1739311617330,1.251,639.0,638.33,0.31331756]
[1739311617929,1.3480511,638.99,638.33,0.31331756]
[1739311618230,1.3480511,638.98,638.33,0.31331756]
[1739311618424,1.251,639.0,638.33,0.31331756]
[1739311618628,1.34821813,638.99,638.33,0.31331756]
[1739311618821,1.251,639.0,638.33,0.31331756]
[1739311619023,1.34821308,638.99,638.33,0.31331756]
[1739311619329,1.34845669,638.98,638.33,0.31331756]
[1739311619527,1.251,639.0,638.33,0.31331756]
[1739311619929,1.34846963,638.99,638.33,0.31331756]
[1739311620129,1.34846963,638.98,638.33,0.31331756]
[1739311620331,1.34846963,638.97,638.33,0.31331756]
[1739311620632,0.657,638.99,638.33,0.31331756]
[1739311620827,0.657,638.99,638.38,1.13057641]
[1739311623227,1.34910193,638.98,638.38,1.13057641]
[1739311623433,0.657,638.99,638.38,1.13057641]
[1739311623730,0.657,638.99,638.33,0.31331756]
[1739311624232,1.593,638.99,638.33,0.31331756]
[1739311624432,1.34909068,638.98,638.33,0.31331756]
[1739311624734,1.593,638.99,638.33,0.31331756]
[1739311625032,1.34910032,638.98,638.33,0.31331756]
[1739311625233,1.593,638.99,638.33,0.31331756]
[1739311625427,1.34908074,638.98,638.33,0.31331756]
[1739311625625,1.593,638.99,638.33,0.31331756]
[1739311625831,1.3490873,638.98,638.33,0.31331756]
[1739311626027,1.593,638.99,638.33,0.31331756]
[1739311631439,1.593,638.99,638.44,1.13057641]
[1739311631637,1.593,638.99,638.45,0.31325867]
[1739311633737,2.456,638.99,638.45,0.31325867]
[1739311633938,2.456,638.99,638.5,1.13057641]
[1739311636039,2.456,638.99,638.45,0.31325867]
[1739311637040,1.799,638.99,638.45,0.31325867]
[1739311638141,0.657,638.98,638.45,0.31325867]
[1739311656859,1.849,638.98,638.45,0.31325867]
[1739311661465,1.849,638.98,638.5,1.13057641]
[1739311661662,1.849,638.98,638.51,0.31322923]
[1739311662261,1.192,638.98,638.51,0.31322923]
[1739311663570,1.192,638.98,638.52,1.13057641]
[1739311666065,1.192,638.98,638.59,1.13057641]
[1739311668572,1.192,638.98,638.63,1.13057641]
[1739311671072,1.192,638.98,638.55,1.13057641]
[1739311672970,1.192,638.98,638.56,1.13057641]
[1739311675475,1.192,638.98,638.62,1.13057641]
[1739311677582,1.192,638.98,638.58,1.13057641]
[1739311679978,1.192,638.98,638.59,1.13057641]
[1739311681179,1.17715793,638.98,638.59,1.13057641]
[1739311682981,1.17715793,638.98,638.83,1.13057641]
[1739311683483,0.656,638.99,638.83,1.13057641]
[1739311684881,0.656,638.99,638.79,1.13057641]
[1739311686991,0.656,638.99,638.78,1.13057641]
[1739311689386,0.656,638.99,638.51,0.31322923]
[1739311692394,0.656,638.99,638.51,1.44380564]
[1739311692592,1.227,639.05,638.51,1.44380564]
[1739311693897,0.656,639.04,638.51,1.44380564]
[1739311695202,0.656,639.04,638.53,1.13057641]
[1739311697301,0.656,639.04,638.54,1.13057641]
[1739311699697,0.656,639.04,638.52,1.13057641]
[1739311702703,1.907,639.04,638.52,1.13057641]
[1739311705507,2.738,639.04,638.52,1.13057641]
[1739311705711,2.738,639.04,638.51,0.31322923]
[1739311715712,2.082,639.04,638.51,0.31322923]
[1739311717018,0.657,639.03,638.51,0.31322923]
[1739311725620,0.657,639.03,638.51,1.44380564]
[1739311727818,0.657,639.03,638.51,0.31322923]
[1739311733925,1.908,639.03,638.51,0.31322923]
[1739311736028,1.251,639.03,638.51,0.31322923]
[1739311737134,0.657,639.02,638.51,0.31322923]
[1739311752042,0.657,639.02,638.6,1.13057641]
[1739311754544,0.657,639.02,638.58,1.13057641]
[1739311756647,0.657,639.02,638.51,0.31322923]
[1739311756648,0.657,639.02,638.62,1.13057641]
[1739311757147,1.251,639.03,638.62,1.13057641]
[1739311758344,0.657,639.02,638.62,1.13057641]
[1739311759644,0.657,639.02,638.51,0.31322923]
[1739311759844,1.495,639.02,638.51,0.31322923]
[1739311785664,1.495,639.02,638.55,1.13057641]
[1739311787966,1.495,639.02,638.57,1.13057641]
[1739311788366,0.838,639.02,638.57,1.13057641]
[1739311789665,0.657,639.01,638.57,1.13057641]
[1739311790272,0.657,639.01,638.51,0.31322923]
[1739311791169,1.478,639.01,638.51,0.31322923]
[1739311812597,1.478,639.01,638.61,1.13057641]
[1739311814000,1.478,639.01,638.51,0.31322923]
[1739311814001,1.478,639.01,638.63,1.13057641]
[1739311815699,0.821,639.01,638.63,1.13057641]
[1739311815998,0.821,639.01,638.58,1.13057641]
[1739311816800,0.657,639.0,638.58,1.13057641]
[1739311818205,0.657,639.0,638.59,1.13057641]
[1739311818407,1.883,639.0,638.59,1.13057641]
[1739311820103,1.883,639.0,638.6,0.31318509]
[1739311823513,1.883,639.0,638.68,1.13057641]
[1739311823711,1.883,639.0,638.69,0.31314096]
[1739311824413,1.226,639.0,638.69,0.31314096]
[1739311837422,0.656,639.29,638.69,0.31314096]
[1739311838519,1.63,639.29,638.69,0.31314096]
[1739311853630,0.974,639.29,638.69,0.31314096]
[1739311861131,0.974,639.29,638.81,1.13057641]
[1739311861335,0.974,639.29,638.82,0.31307723]
[1739311865239,0.656,639.39,638.82,0.31307723]
[1739311866440,1.907,639.39,638.82,0.31307723]
[1739311868641,1.251,639.39,638.82,0.31307723]
[1739311871444,0.656,639.69,639.2,1.13057641]
[1739311871941,0.656,639.69,639.21,0.31288621]
[1739311872739,1.115,639.75,639.21,0.31288621]
[1739311879145,0.655,640.04,639.21,0.31288621]
[1739311880344,1.672,640.04,639.21,0.31288621]
[1739311884951,1.017,640.04,639.21,0.31288621]
[1739311893558,0.655,640.29,639.21,0.31288621]
[1739311894653,1.686,640.29,639.21,0.31288621]
[1739311896460,1.16766084,642.24,639.21,0.31288621]
[1739311896655,0.31148281,642.09,639.21,0.31288621]
[1739311896859,1.61469532,642.08,639.21,0.31288621]
[1739311897059,0.31155559,641.94,639.21,0.31288621]
[1739311897261,1.61469532,641.93,639.21,0.31288621]
[1739311897462,0.31162355,641.8,639.21,0.31288621]
[1739311897662,1.61469532,641.79,639.21,0.31288621]
[1739311897859,0.31168669,641.67,639.21,0.31288621]
[1739311898162,1.32805074,641.66,639.21,0.31288621]
[1739311898358,0.31174985,641.54,639.21,0.31288621]
[1739311898562,1.32805074,641.53,639.21,0.31288621]
[1739311898758,0.31180331,641.43,639.21,0.31288621]
[1739311898962,1.32805074,641.42,639.21,0.31288621]
[1739311899262,0.31181789,641.4,639.21,0.31288621]
[1739311899461,1.32828151,641.39,639.21,0.31288621]
[1739311899761,0.31183248,641.37,639.21,0.31288621]
[1739311899962,1.32828151,641.36,639.21,0.31288621]
[1739311900161,0.31184707,641.34,639.21,0.31288621]
[1739311900362,1.32828151,641.33,639.21,0.31288621]
[1739311900563,0.31186165,641.31,639.21,0.31288621]
[1739311900763,1.32828151,641.3,639.21,0.31288621]
[1739311900964,0.31187624,641.28,639.21,0.31288621]
[1739311901166,1.32854188,641.27,639.21,0.31288621]
[1739311901467,0.31189083,641.25,639.21,0.31288621]
[1739311901666,1.32854188,641.24,639.21,0.31288621]
[1739311901865,0.31190543,641.22,639.21,0.31288621]
[1739311902065,1.32854188,641.21,639.21,0.31288621]
[1739311902364,0.31192002,641.19,639.21,0.31288621]
[1739311902664,1.32854188,641.18,639.21,0.31288621]
[1739311902867,1.64047163,641.17,639.21,0.31288621]
[1739311903165,1.64085197,641.16,639.21,0.31288621]
[1739311903365,1.64085684,641.15,639.21,0.31288621]
[1739311903568,1.6408617,641.14,639.21,0.31288621]
[1739311903861,1.64086657,641.13,639.21,0.31288621]
[1739311904167,1.64087144,641.12,639.21,0.31288621]
[1739311904466,1.6408763,641.11,639.21,0.31288621]
[1739311904767,1.64088117,641.1,639.21,0.31288621]
[1739311904966,1.64088603,641.09,639.21,0.31288621]
[1739311905269,1.64134847,641.08,639.21,0.31288621]
[1739311905461,1.64135334,641.07,639.21,0.31288621]
[1739311905668,1.6413582,641.06,639.21,0.31288621]
[1739311905869,1.64136307,641.05,639.21,0.31288621]
[1739311906079,1.64136794,641.04,639.21,0.31288621]
[1739311906269,1.6413728,641.03,639.21,0.31288621]
[1739311906565,1.64137767,641.02,639.21,0.31288621]
[1739311906869,1.64138254,641.01,639.37,1.13057641]
[1739311907069,1.32937493,641.0,639.39,0.31279813]
[1739311907262,1.32937493,640.99,639.39,0.31279813]
[1739311907461,1.32937493,640.98,639.39,0.31279813]
[1739311907667,1.32937493,640.97,639.39,0.31279813]
[1739311907868,1.33017691,640.96,639.39,0.31279813]
[1739311908069,1.33017691,640.95,639.39,0.31279813]
[1739311908370,1.33017691,640.94,639.39,0.31279813]
[1739311908571,1.33017691,640.93,639.39,0.31279813]
[1739311908771,1.33017691,640.92,639.39,0.31279813]
[1739311908966,1.33017691,640.91,639.54,1.13057641]
[1739311909172,1.33017691,640.9,639.55,0.31271988]
[1739311909370,1.33096569,640.89,639.55,0.31271988]
[1739311909667,1.33096569,640.88,639.55,0.31271988]
[1739311909871,1.33099594,640.87,639.55,0.31271988]
[1739311910072,1.33099594,640.86,639.55,0.31271988]
[1739311910268,1.33099594,640.85,639.55,0.31271988]
[1739311910473,0.31200761,641.01,639.55,0.31271988]
[1739311910474,1.33099594,640.84,639.55,0.31271988]
[1739311910673,1.33099594,640.83,639.55,0.31271988]
[1739311910968,1.33099594,640.82,639.55,0.31271988]
[1739311911172,1.33099594,640.81,639.55,0.31271988]
[1739311911373,1.33099594,640.8,639.55,0.31271988]
[1739311911574,1.33185586,640.79,639.55,0.31271988]
[1739311911775,1.33185586,640.78,639.55,0.31271988]
[1739311912076,1.33185586,640.77,639.55,0.31271988]
[1739311912275,1.33185586,640.76,639.55,0.31271988]
[1739311912476,1.33185586,640.75,639.55,0.31271988]
[1739311912776,1.33185586,640.74,639.55,0.31271988]
[1739311912977,1.33185586,640.73,639.55,0.31271988]
[1739311913175,1.33185586,640.72,639.55,0.31271988]
[1739311913375,1.33185586,640.71,639.55,0.31271988]
[1739311913576,1.33185586,640.7,639.55,0.31271988]
[1739311913876,1.33185586,640.69,639.55,0.31271988]
[1739311914077,1.33185586,640.68,639.55,0.31271988]
[1739311914278,1.33185586,640.67,639.55,0.31271988]
[1739311914474,1.33185586,640.66,639.55,0.31271988]
[1739311914676,1.33185586,640.65,639.55,0.31271988]
[1739311914975,1.33185586,640.64,639.55,0.31271988]
[1739311915177,1.33185586,640.63,639.55,0.31271988]
[1739311915377,1.33185586,640.62,639.55,0.31271988]
[1739311915577,1.33185586,640.61,639.55,0.31271988]
[1739311915774,1.33185586,640.6,639.55,0.31271988]
[1739311915982,1.33185586,640.59,639.55,0.31271988]
[1739311916279,1.33185586,640.58,639.55,0.31271988]
[1739311916480,1.33185586,640.57,639.55,0.31271988]
[1739311916681,1.33185586,640.56,639.55,0.31271988]
[1739311916881,1.33185586,640.55,639.61,1.13057641]
[1739311917081,1.33185586,640.54,639.62,0.31268565]
[1739311917378,1.33506335,640.53,639.62,0.31268565]
[1739311917575,0.958,640.79,639.62,0.31268565]
[1739311917779,1.33561201,640.78,639.62,0.31268565]
[1739311917979,1.33561201,640.77,639.62,0.31268565]
[1739311918179,1.33561201,640.76,639.62,0.31268565]
[1739311918379,1.33562999,640.75,639.62,0.31268565]
[1739311918579,1.33562999,640.74,639.62,0.31268565]
[1739311918881,1.33562999,640.73,639.62,0.31268565]
[1739311919182,1.33562999,640.72,639.62,0.31268565]
[1739311919378,1.33562999,640.71,639.62,0.31268565]
[1739311919582,1.33562999,640.7,639.62,0.31268565]
[1739311919882,1.33738195,640.69,639.62,0.31268565]
[1739311920076,1.33738195,640.68,639.62,0.31268565]
[1739311920283,1.33738195,640.67,639.62,0.31268565]
[1739311920482,1.33738195,640.66,639.62,0.31268565]
[1739311920676,1.33738195,640.65,639.62,0.31268565]
[1739311920881,1.33738195,640.64,639.62,0.31268565]
[1739311921183,1.33738195,640.63,639.62,0.31268565]
[1739311921381,1.33738195,640.62,639.62,0.31268565]
[1739311921577,1.33738195,640.61,639.62,0.31268565]
[1739311921782,1.33738195,640.6,639.62,0.31268565]
[1739311921978,1.33738195,640.59,639.62,0.31268565]
[1739311922182,1.33738195,640.58,639.62,0.31268565]
[1739311922384,1.33738195,640.57,639.62,0.31268565]
[1739311922585,1.33738195,640.56,639.62,0.31268565]
[1739311922786,1.33738195,640.55,639.62,0.31268565]
[1739311922983,1.528,640.74,639.62,0.31268565]
[1739311923185,1.33849938,640.73,639.62,0.31268565]